fUST/lending_fUST_20251029
["ID","MTS","AMOUNT","RATE_DAILY","PERIOD"]
[392601327,1761727851130,-747.84,0.00022465,2]
[392601328,1761727851139,-815.03,0.00022465,2]
[392601329,1761727851149,-515.65006648,0.00022465,2]
[392601330,1761727851159,-3115.3,0.00022465,2]
[392601331,1761727851168,-500.0,0.00022465,2]
[392601332,1761727851178,-500.0,0.00022465,2]
[392601333,1761727851187,-500.0,0.00022465,2]
[392601334,1761727851196,-500.0,0.00022465,2]
[392601335,1761727851206,-500.0,0.00022465,2]
[392601336,1761727851216,-598.12154732,0.00022465,2]
[392601337,1761727851225,-1010.83,0.00022465,2]
[392601338,1761727851234,-500.0,0.00022465,2]
[392601339,1761727851244,-500.0,0.00022465,2]
[392601340,1761727851253,-687.41,0.00022465,2]
[392601341,1761727851367,-500.0,0.00022465,2]
[392601342,1761727851378,-500.0,0.00022465,2]
[392601343,1761727851387,-639.73,0.00022465,2]
[392601344,1761727851396,-500.0,0.00022465,2]
[392601345,1761727851406,-1012.93,0.00022465,2]
[392601346,1761727851415,-500.0,0.00022465,2]
[392601347,1761727851424,-500.0,0.00022465,2]
[392601348,1761727851435,-500.0,0.00022465,2]
[392601349,1761727851444,-500.0,0.00022465,2]
[392601350,1761727851453,-731.46,0.00022465,2]
[392601351,1761727851462,-580.46,0.00022465,2]
[392601352,1761727851471,-952.37,0.00022465,2]
[392601353,1761727851480,-500.0,0.00022465,2]
[392601354,1761727851489,-500.0,0.00022465,2]
[392601355,1761727851499,-500.0,0.00022465,2]
[392601356,1761727851508,-1461.39,0.00022465,2]
[392601357,1761727851518,-500.0,0.00022465,2]
[392601358,1761727851527,-500.0,0.00022465,2]
[392601359,1761727851536,-500.0,0.00022465,2]
[392601360,1761727851546,-639.60408378,0.00022465,2]
[392601361,1761727851555,-500.0,0.00022465,2]
[392601362,1761727851565,-1491.13,0.00022465,2]
[392601363,1761727851575,-500.0,0.00022465,2]
[392601364,1761727851584,-500.0,0.00022465,2]
[392601365,1761727851594,-500.0,0.00022465,2]
[392601366,1761727851603,-500.0,0.00022465,2]
[392601367,1761727851614,-500.0,0.00022465,2]
[392601368,1761727851624,-559.06,0.00022465,2]
[392601369,1761727851633,-500.0,0.00022465,2]
[392601370,1761727851642,-2455.3,0.00022465,2]
[392601371,1761727851652,-500.0,0.00022465,2]
[392601372,1761727851662,-589.62,0.00022465,2]
[392601373,1761727851672,-500.0,0.00022465,2]
[392601374,1761727851681,-500.0,0.00022465,2]
[392601375,1761727851690,-1107.21,0.00022465,2]
[392601376,1761727851700,-500.0,0.00022465,2]
[392601377,1761727851709,-1019.79,0.00022465,2]
[392601378,1761727851719,-500.0,0.00022465,2]
[392601379,1761727851728,-500.0,0.00022465,2]
[392601380,1761727851738,-500.0,0.00022465,2]
[392601381,1761727851747,-500.0,0.00022465,2]
[392601382,1761727851757,-1034.48,0.00022465,2]
[392601383,1761727851766,-500.0,0.00022465,2]
[392601384,1761727851776,-500.0,0.00022465,2]
[392601385,1761727851785,-1318.15,0.00022465,2]
[392601386,1761727851794,-500.0,0.00022465,2]
[392601387,1761727851803,-500.0,0.00022465,2]
[392601388,1761727851813,-500.0,0.00022465,2]
[392601389,1761727851822,-1153.77,0.00022465,2]
[392601390,1761727851831,-1484.3,0.00022465,2]
[392601391,1761727851841,-1808.22,0.00022465,2]
[392601392,1761727851851,-500.0,0.00022465,2]
[392601393,1761727851861,-709.71,0.00022465,2]
[392601394,1761727851871,-588.63,0.00022465,2]
[392601395,1761727851880,-500.0,0.00022465,2]
[392601396,1761727851889,-1627.02,0.00022465,2]
[392601397,1761727851899,-500.0,0.00022465,2]
[392601398,1761727851909,-535.23,0.00022465,2]
[392601399,1761727851918,-500.0,0.00022465,2]
[392601400,1761727851927,-660.76,0.00022465,2]
[392601401,1761727851937,-500.0,0.00022465,2]
[392601402,1761727851946,-500.0,0.00022465,2]
[392601403,1761727851955,-1902.71,0.00022465,2]
[392601404,1761727851964,-150.0,0.00022473,2]
[392601405,1761727851974,-168.0,0.00022516,2]
[392601406,1761727851984,-1000.0,0.00022521,2]
[392601407,1761727851995,-1000.0,0.00022521,2]
[392601408,1761727852004,-952.64237076,0.00022521,2]
[392601409,1761727852014,-1000.0,0.00022521,2]
[392601410,1761727852025,-1000.0,0.00022521,2]
[392601411,1761727852034,-1000.0,0.00022521,2]
[392601412,1761727852045,-1000.0,0.00022521,2]
[392601413,1761727852055,-1000.0,0.00022521,2]
[392601414,1761727852064,-379.52089339,0.00022521,2]
[392601415,1761727852075,-1000.0,0.00022521,2]
[392601416,1761727852084,-490.92320092,0.00022521,2]
[392601417,1761727852093,-1000.0,0.00022521,2]
[392601418,1761727852103,-1000.0,0.00022521,2]
[392601419,1761727852113,-1314.0,0.00022566,2]
[392601420,1761727852123,-168.0,0.00022576,2]
[392601421,1761727852133,-2866.91,0.00022615,2]
[392601422,1761727852143,-203.120391,0.00022634,20]
[392601423,1761727852152,-168.0,0.00022635,2]
[392601424,1761727852162,-500.0,0.00022639,5]
[392601425,1761727852171,-500.0,0.00022639,3]
[392601426,1761727852181,-7295.57398889,0.00022639,2]
[392601427,1761727852190,-179.9460162,0.00022673,2]
[392601428,1761727852199,-1000.0,0.00022721,2]
[392601429,1761727852209,-1000.0,0.00022721,2]
[392601430,1761727852218,-176.72536423,0.00022721,2]
[392601431,1761727852228,-1000.0,0.00022721,2]
[392601432,1761727852237,-217.50422351,0.00022721,2]
[392601433,1761727852247,-1000.0,0.00022721,2]
[392601434,1761727852256,-1000.0,0.00022721,2]
[392601435,1761727852266,-1000.0,0.00022721,2]
[392601436,1761727852275,-962.92422489,0.00022721,2]
[392601437,1761727852285,-1000.0,0.00022721,2]
[392601438,1761727852294,-167.40312448,0.00022721,2]
[392601439,1761727852304,-1000.0,0.00022721,2]
[392601440,1761727852313,-582.91144895,0.00022721,2]
[392601441,1761727852323,-1000.0,0.00022721,2]
[392601442,1761727852333,-1000.0,0.00022721,2]
[392601443,1761727852343,-1000.74345721,0.00022721,2]
[392601444,1761727852352,-1000.0,0.00022721,2]
[392601445,1761727852361,-1000.0,0.00022721,2]
[392601446,1761727852371,-1000.0,0.00022721,2]
[392601447,1761727852380,-304.07397399,0.00022721,2]
[392601448,1761727852389,-1000.0,0.00022721,2]
[392601449,1761727852399,-424.65598538,0.00022721,2]
[392601450,1761727852408,-1000.0,0.00022721,2]
[392601451,1761727852418,-256.07872926,0.00022721,2]
[392601452,1761727852427,-1000.0,0.00022721,2]
[392601453,1761727852437,-1000.0,0.00022721,2]
[392601454,1761727852445,-1000.0,0.00022721,2]
[392601455,1761727852455,-569.084305,0.00022721,2]
[392601456,1761727852464,-500.0,0.00022721,2]
[392601457,1761727852473,-1000.0,0.00022721,2]
[392601458,1761727852483,-1000.0,0.00022721,2]
[392601459,1761727852491,-1000.0,0.00022721,2]
[392601460,1761727852500,-500.0,0.00022739,2]
[392601461,1761727852509,-500.0,0.00022739,2]
[392601462,1761727852518,-500.0,0.00022739,2]
[392601463,1761727852527,-500.0,0.00022739,2]
[392601464,1761727852536,-500.0,0.00022739,2]
[392601465,1761727852545,-604.46,0.00022739,2]
[392601466,1761727852553,-500.0,0.00022739,2]
[392601467,1761727852562,-500.0,0.00022739,2]
[392601468,1761727852572,-500.0,0.00022739,2]
[392601469,1761727852581,-567.49,0.00022739,2]
[392601470,1761727852590,-500.0,0.00022739,2]
[392601471,1761727852599,-500.0,0.00022739,2]
[392601472,1761727852607,-500.0,0.00022739,2]
[392601473,1761727852617,-500.0,0.00022739,2]
[392601474,1761727852625,-500.0,0.00022739,2]
[392601475,1761727852634,-503.68,0.00022739,2]
[392601476,1761727852643,-500.0,0.00022739,2]
[392601477,1761727852652,-500.0,0.00022739,2]
[392601478,1761727852662,-535.01,0.00022739,2]
[392601479,1761727852671,-500.0,0.00022739,2]
[392601480,1761727852680,-500.0,0.00022739,2]
[392601481,1761727852689,-500.0,0.00022739,2]
[392601482,1761727852699,-500.0,0.00022739,2]
[392601483,1761727852708,-500.0,0.00022739,2]
[392601484,1761727852717,-500.0,0.00022739,2]
[392601485,1761727852727,-500.0,0.00022739,2]
[392601486,1761727852736,-500.0,0.00022739,2]
[392601487,1761727852746,-500.0,0.00022739,2]
[392601488,1761727852755,-516.43,0.00022739,2]
[392601489,1761727852764,-500.0,0.00022739,2]
[392601490,1761727852773,-500.0,0.00022739,2]
[392601491,1761727852782,-500.0,0.00022739,2]
[392601492,1761727852791,-500.0,0.00022739,2]
[392601493,1761727852800,-500.0,0.00022739,2]
[392601494,1761727852809,-500.0,0.00022739,2]
[392601495,1761727852819,-500.0,0.00022739,2]
[392601496,1761727852827,-677.91,0.00022739,2]
[392601497,1761727852837,-500.0,0.00022739,2]
[392601498,1761727852845,-500.0,0.00022739,2]
[392601499,1761727852855,-500.0,0.00022739,2]
[392601500,1761727852863,-500.0,0.00022739,2]
[392601501,1761727852872,-726.39,0.00022739,2]
[392601502,1761727852881,-500.0,0.00022739,2]
[392601503,1761727852890,-500.0,0.00022739,2]
[392601504,1761727852899,-595.01,0.00022739,2]
[392601505,1761727852908,-2962.64,0.00022739,2]
[392601506,1761727852918,-500.0,0.00022739,2]
[392601507,1761727852927,-500.0,0.00022739,2]
[392601508,1761727852937,-500.0,0.00022739,2]
[392601509,1761727852947,-500.0,0.00022739,2]
[392601510,1761727852956,-500.0,0.00022739,2]
[392601511,1761727852965,-500.0,0.00022739,2]
[392601512,1761727852975,-500.0,0.00022739,2]
[392601513,1761727852985,-500.0,0.00022739,2]
[392601514,1761727852994,-500.0,0.00022739,2]
[392601515,1761727853004,-500.0,0.00022739,2]
[392601516,1761727853014,-500.0,0.00022739,2]
[392601517,1761727853023,-552.19,0.00022739,2]
[392601518,1761727853033,-500.0,0.00022739,2]
[392601519,1761727853046,-567.53,0.00022739,2]
[392601520,1761727853056,-500.0,0.00022739,2]
[392601521,1761727853066,-532.82,0.00022739,2]
[392601522,1761727853076,-500.0,0.00022739,2]
[392601523,1761727853087,-500.0,0.00022739,2]
[392601524,1761727853097,-607.45,0.00022739,2]
[392601525,1761727853106,-500.0,0.00022739,2]
[392601526,1761727853117,-540.08,0.00022739,2]
[392601527,1761727853126,-500.0,0.00022739,2]
[392601528,1761727853136,-500.0,0.00022739,2]
[392601529,1761727853146,-500.0,0.00022739,2]
[392601530,1761727853155,-500.0,0.00022739,2]
[392601531,1761727853165,-500.0,0.00022739,2]
[392601532,1761727853174,-500.0,0.00022739,2]
[392601533,1761727853184,-500.0,0.00022739,2]
[392601534,1761727853193,-500.0,0.00022739,2]
[392601535,1761727853203,-500.0,0.00022739,2]
[392601536,1761727853212,-666.98,0.00022739,2]
[392601537,1761727853225,-500.0,0.00022739,2]
[392601538,1761727853235,-500.0,0.00022739,2]
[392601539,1761727853244,-500.0,0.00022739,2]
[392601540,1761727853254,-500.0,0.00022739,2]
[392601541,1761727853263,-686.48,0.00022739,2]
[392601542,1761727853273,-500.0,0.00022739,2]
[392601543,1761727853282,-1407.21,0.00022739,2]
[392601544,1761727853291,-500.0,0.00022739,2]
[392601545,1761727853301,-416.24698499,0.00022739,2]
[392601546,1761727853311,-194.79666037,0.00022739,2]
[392601547,1761727853320,-1105.48,0.00022739,2]
[392601548,1761727853330,-526.29,0.00022739,2]
[392601549,1761727853340,-500.0,0.00022739,2]
[392601550,1761727853349,-500.0,0.00022739,2]
[392601551,1761727853359,-500.0,0.00022739,2]
[392601552,1761727853370,-500.0,0.00022739,2]
[392601553,1761727853380,-502.0946693,0.00022739,2]
[392601554,1761727853389,-500.0,0.00022739,2]
[392601555,1761727853399,-500.0,0.00022739,2]
[392601556,1761727853408,-500.0,0.00022739,2]
[392601557,1761727853418,-500.0,0.00022739,2]
[392601558,1761727853427,-500.0,0.00022739,2]
[392601559,1761727853437,-500.0,0.00022739,2]
[392601560,1761727853447,-500.0,0.00022739,2]
[392601561,1761727853457,-500.0,0.00022739,2]
[392601562,1761727853467,-500.0,0.00022739,2]
[392601563,1761727853477,-533.56,0.00022739,2]
[392601564,1761727853487,-645.56,0.00022739,2]
[392601565,1761727853497,-508.41,0.00022739,2]
[392601566,1761727853507,-500.0,0.00022739,2]
[392601567,1761727853516,-500.0,0.00022739,2]
[392601568,1761727853526,-500.0,0.00022739,2]
[392601569,1761727853536,-659.58,0.00022739,2]
[392601570,1761727853546,-500.0,0.00022739,2]
[392601571,1761727853556,-500.0,0.00022739,2]
[392601572,1761727853565,-608.96,0.00022739,2]
[392601573,1761727853575,-500.0,0.00022739,2]
[392601574,1761727853584,-536.84,0.00022739,2]
[392601575,1761727853599,-513.01,0.00022739,2]
[392601576,1761727853609,-500.0,0.00022739,2]
[392601577,1761727853619,-500.0,0.00022739,2]
[392601578,1761727853629,-500.0,0.00022739,2]
[392601579,1761727853639,-500.0,0.00022739,2]
[392601580,1761727853648,-545.89,0.00022739,2]
[392601581,1761727853658,-500.0,0.00022739,2]
[392601582,1761727853779,-500.0,0.00022739,2]
[392601583,1761727853789,-500.0,0.00022739,2]
[392601584,1761727853799,-500.0,0.00022739,2]
[392601585,1761727853809,-500.0,0.00022739,2]
[392601586,1761727853818,-521.63,0.00022739,2]
[392601587,1761727853828,-868.18,0.00022739,2]
[392601588,1761727853838,-500.0,0.00022739,2]
[392601589,1761727853847,-500.0,0.00022739,2]
[392601590,1761727853856,-500.0,0.00022739,2]
[392601591,1761727853865,-811.15,0.00022739,2]
[392601592,1761727853874,-500.0,0.00022739,2]
[392601593,1761727853883,-500.0,0.00022739,2]
[392601594,1761727853892,-500.0,0.00022739,2]
[392601595,1761727853902,-500.0,0.00022739,2]
[392601596,1761727853911,-500.0,0.00022739,2]
[392601597,1761727853921,-500.0,0.00022739,2]
[392601598,1761727853933,-500.0,0.00022739,2]
[392601599,1761727853946,-500.0,0.00022739,2]
[392601600,1761727853955,-500.0,0.00022739,2]
[392601601,1761727853965,-500.0,0.00022739,2]
[392601602,1761727853974,-500.0,0.00022739,2]
[392601603,1761727853984,-500.0,0.00022739,2]
[392601604,1761727853993,-500.0,0.00022739,2]
[392601605,1761727854002,-500.0,0.00022739,2]
[392601606,1761727854011,-500.0,0.00022739,2]
[392601607,1761727854020,-500.0,0.00022739,2]
[392601608,1761727854029,-715.57,0.00022739,2]
[392601609,1761727854039,-500.0,0.00022739,2]
[392601610,1761727854052,-516.44181082,0.00022739,2]
[392601611,1761727854063,-500.0,0.00022739,2]
[392601612,1761727854072,-622.93,0.00022739,2]
[392601613,1761727854082,-500.0,0.00022739,2]
[392601614,1761727854093,-500.0,0.00022739,2]
[392601615,1761727854103,-500.0,0.00022739,2]
[392601616,1761727854112,-601.2,0.00022739,2]
[392601617,1761727854121,-500.0,0.00022739,2]
[392601618,1761727854132,-500.0,0.00022739,2]
[392601619,1761727854142,-500.0,0.00022739,2]
[392601620,1761727854151,-610.56,0.00022739,2]
[392601621,1761727854161,-938.11,0.00022739,2]
[392601622,1761727854170,-595.52,0.00022739,2]
[392601623,1761727854179,-500.0,0.00022739,2]
[392601624,1761727854190,-594.35,0.00022739,2]
[392601625,1761727854199,-500.0,0.00022739,2]
[392601626,1761727854208,-514.18,0.00022739,2]
[392601627,1761727854217,-500.0,0.00022739,2]
[392601628,1761727854227,-500.0,0.00022739,2]
[392601629,1761727854236,-500.0,0.00022739,2]
[392601630,1761727854245,-500.0,0.00022739,2]
[392601631,1761727854254,-500.0,0.00022739,2]
[392601632,1761727854263,-500.0,0.00022739,2]
[392601633,1761727854273,-500.0,0.00022739,2]
[392601634,1761727854282,-500.0,0.00022739,2]
[392601635,1761727854291,-500.0,0.00022739,2]
[392601636,1761727854300,-619.74,0.00022739,2]
[392601637,1761727854310,-500.0,0.00022739,2]
[392601638,1761727854319,-500.0,0.00022739,2]
[392601639,1761727854329,-275.72928541,0.00022739,2]
[392601640,1761727854338,-500.0,0.00022739,2]
[392601641,1761727854348,-500.0,0.00022739,2]
[392601642,1761727854357,-500.0,0.00022739,2]
[392601643,1761727854366,-500.0,0.00022739,2]
[392601644,1761727854376,-500.0,0.00022739,2]
[392601645,1761727854385,-500.0,0.00022739,2]
[392601646,1761727854395,-500.0,0.00022739,2]
[392601647,1761727854404,-500.0,0.00022739,2]
[392601648,1761727854413,-529.83,0.00022739,2]
[392601649,1761727854422,-500.0,0.00022739,2]
[392601650,1761727854431,-500.0,0.00022739,2]
[392601651,1761727854440,-500.0,0.00022739,2]
[392601652,1761727854450,-500.0,0.00022739,2]
[392601653,1761727854459,-500.0,0.00022739,2]
[392601654,1761727854468,-500.0,0.00022739,2]
[392601655,1761727854478,-500.0,0.00022739,2]
[392601656,1761727854490,-500.0,0.00022739,2]
[392601657,1761727854499,-987.5,0.00022739,2]
[392601658,1761727854508,-901.08,0.00022739,2]
[392601659,1761727854518,-500.0,0.00022739,2]
[392601660,1761727854527,-500.0,0.00022739,2]
[392601661,1761727854536,-500.0,0.00022739,2]
[392601662,1761727854546,-500.0,0.00022739,2]
[392601663,1761727854555,-500.0,0.00022739,2]
[392601664,1761727854563,-447.32862474,0.00022739,2]
[392601665,1761727854572,-500.0,0.00022739,2]
[392601666,1761727854582,-203.14856268,0.00022739,2]
[392601667,1761727854591,-500.0,0.00022739,2]
[392601668,1761727854599,-500.0,0.00022739,2]
[392601669,1761727854609,-500.0,0.00022739,2]
[392601670,1761727854618,-698.11,0.00022739,2]
[392601671,1761727854627,-1008.33,0.00022739,2]
[392601672,1761727854638,-500.0,0.00022739,2]
[392601673,1761727854647,-500.0,0.00022739,2]
[392601674,1761727854656,-10.65873046,0.00022739,2]
[392601675,1761727854910,-489.34126954,0.00022739,2]
[392601676,1761727854919,-500.0,0.00022739,2]
[392601677,1761727854928,-165.15873046,0.00022739,2]
[392601678,1761727854939,-334.84126954,0.00022739,2]
[392601679,1761727854948,-732.31,0.00022739,2]
[392601680,1761727854957,-500.0,0.00022739,2]
[392601681,1761727854966,-500.0,0.00022739,2]
[392601682,1761727854975,-242.04873046,0.00022739,2]
[392601683,1761727855455,-131.24869624,0.00022739,2]
[392601684,1761727898909,882.66,0.00018978,2]
[392601692,1761728228594,22684.0,0.000301,120]
[392601717,1761728395223,574.515551,0.0003,120]
[392601729,1761728668316,1156.80704558,0.000181,5]
[392601732,1761728721136,986.76,0.00030137,120]
[392601733,1761728769662,300.0,0.000301,120]
[392601749,1761728851081,-150.0,0.00018644,2]
[392601750,1761728851102,-350.3921015,0.0002,4]
[392601751,1761728851123,-183.26277847,0.00020059,2]
[392601804,1761729032523,-169.58352199,0.00019417,2]
[392601806,1761729032533,-3038.65838933,0.00020059,2]
[392601808,1761729032541,-150.0,0.00020347,2]
[392601810,1761729032551,-871.43,0.00020702,2]
[392601812,1761729032560,-2406.64992233,0.00020953,2]
[392601814,1761729032569,-150.0,0.00021,2]
[392601816,1761729032578,-1200.0,0.00021042,2]
[392601818,1761729032588,-6423.14858489,0.00021042,2]
[392601820,1761729032597,-1200.0,0.00021043,2]
[392601822,1761729032606,-300.0,0.00021043,2]
[392601824,1761729032616,-300.0,0.00021043,2]
[392601826,1761729032625,-300.0,0.00021043,2]
[392601828,1761729032635,-300.0,0.00021043,2]
[392601830,1761729032644,-300.0,0.00021043,2]
[392601832,1761729032653,-500.0,0.00021051,2]
[392601834,1761729032663,-500.0,0.00021051,2]
[392601836,1761729032672,-500.0,0.00021051,2]
[392601838,1761729032681,-464.89238305,0.00021051,2]
[392601840,1761729032691,-500.0,0.00021051,2]
[392601842,1761729032701,-500.0,0.00021051,2]
[392601844,1761729032711,-500.0,0.00021051,2]
[392601846,1761729032720,-500.0,0.00021051,2]
[392601847,1761729032734,-500.0,0.00021051,2]
[392601848,1761729032744,-500.0,0.00021051,2]
[392601849,1761729032754,-500.0,0.00021051,2]
[392601851,1761729032765,-500.0,0.00021051,2]
[392601852,1761729032775,-500.0,0.00021051,2]
[392601853,1761729032785,-243.82848598,0.00021051,2]
[392601855,1761729032795,-500.0,0.00021051,2]
[392601857,1761729032805,-500.0,0.00021051,2]
[392601859,1761729032815,-500.0,0.00021051,2]
[392601861,1761729032824,-500.0,0.00021051,2]
[392601863,1761729032833,-176.59995578,0.00021051,2]
[392601865,1761729032843,-305.29841701,0.00021051,2]
[392601867,1761729032852,-500.0,0.00021051,2]
[392601869,1761729032862,-500.0,0.00021051,2]
[392601871,1761729032871,-405.71705957,0.00021051,2]
[392601873,1761729032880,-21570.98346332,0.00021052,2]
[392601875,1761729032889,-500.0,0.00021057,2]
[392601876,1761729032898,-300.0,0.00021057,2]
[392601878,1761729032907,-300.0,0.00021057,2]
[392601880,1761729032916,-300.0,0.00021057,2]
[392601882,1761729032926,-300.0,0.00021057,2]
[392601884,1761729032935,-300.0,0.00021057,2]
[392601886,1761729032945,-300.0,0.00021057,2]
[392601888,1761729032954,-300.0,0.00021057,2]
[392601890,1761729032963,-300.0,0.00021057,2]
[392601892,1761729032972,-300.0,0.00021057,2]
[392601894,1761729032982,-300.0,0.00021057,2]
[392601896,1761729032991,-300.0,0.00021057,2]
[392601898,1761729033001,-300.0,0.00021057,2]
[392601899,1761729033011,-300.0,0.00021057,2]
[392601901,1761729033020,-300.0,0.00021057,2]
[392601903,1761729033029,-300.0,0.00021057,2]
[392601905,1761729033038,-403.72361849,0.00021222,2]
[392601907,1761729033047,-500.0,0.00021331,2]
[392601909,1761729033057,-500.0,0.00021605,2]
[392601911,1761729033066,-500.0,0.00021616,2]
[392601913,1761729033075,-440.00206969,0.00021616,2]
[392601915,1761729033085,-233.26995909,0.00021617,2]
[392601917,1761729033094,-5296.78194874,0.00021617,2]
[392601919,1761729033103,-3176.0,0.00021618,2]
[392601921,1761729033112,-412.0,0.00021618,2]
[392601923,1761729033121,-233.26995905,0.00021667,2]
[392601925,1761729033130,-1742.85,0.00021687,2]
[392601927,1761729033140,-379.24152619,0.00021704,2]
[392601929,1761729033149,-1000.0,0.00021704,2]
[392601931,1761729033159,-1000.0,0.00021704,2]
[392601932,1761729033168,-1000.0,0.00021704,2]
[392601933,1761729033178,-151.0,0.00021704,2]
[392601934,1761729033187,-1000.0,0.00021704,2]
[392601935,1761729033197,-151.0,0.00021704,2]
[392601936,1761729033207,-1000.0,0.00021704,2]
[392601937,1761729033217,-151.0,0.00021704,2]
[392601938,1761729033226,-1000.0,0.00021704,2]
[392601939,1761729033236,-500.0,0.00021704,2]
[392601940,1761729033245,-151.0,0.00021704,2]
[392601941,1761729033255,-1000.0,0.00021704,2]
[392601942,1761729033265,-151.0,0.00021704,2]
[392601943,1761729033274,-187.58760619,0.00021704,2]
[392601944,1761729033284,-151.0,0.00021704,2]
[392601945,1761729033293,-151.0,0.00021704,2]
[392601946,1761729033303,-151.0,0.00021704,2]
[392601947,1761729033312,-151.0,0.00021704,2]
[392601948,1761729033321,-151.0,0.00021704,2]
[392601949,1761729033331,-151.0,0.00021704,2]
[392601950,1761729033340,-151.0,0.00021704,2]
[392601951,1761729033350,-151.0,0.00021704,2]
[392601952,1761729033359,-151.0,0.00021704,2]
[392601953,1761729033369,-151.0,0.00021704,2]
[392601954,1761729033378,-152.96043574,0.00021704,2]
[392601955,1761729033387,-212.37,0.00021707,3]
[392601956,1761729033396,-637.11,0.00021707,3]
[392601957,1761729033406,-2072.76,0.00021707,10]
[392601958,1761729033415,-1727.3,0.00021707,10]
[392601959,1761729033425,-1439.42,0.00021707,10]
[392601960,1761729033434,-285.32216851,0.00021716,2]
[392601961,1761729033444,-174.02555628,0.00021716,2]
[392601962,1761729033453,-500.0,0.00021716,2]
[392601963,1761729033462,-11803.60442796,0.00021717,2]
[392601964,1761729033476,-50000.0,0.00021717,2]
[392601965,1761729033494,-443.60369314,0.00021051,2]
[392601966,1761729033503,-4069.64220896,0.00021717,2]
[392601974,1761729038608,-5707.55656931,0.00021717,2]
[392601977,1761729038621,-3729.53825497,0.00021717,2]
[392601978,1761729038632,-6855.0881058,0.00021717,2]
[392601980,1761729038646,-2176.19152257,0.00021717,2]
[392602009,1761729040857,-7367.67430979,0.00021717,2]
[392602010,1761729040871,-29123.44939039,0.00021717,2]
[392602011,1761729040884,-32290.8051015,0.00021717,2]
[392602037,1761729044236,-88046.64726769,0.00021717,2]
[392602307,1761729066061,-1149.7,0.00021707,10]
[392602308,1761729165234,1256.0,0.00030137,120]
[392602314,1761729863922,2010.68433566,0.0003,120]
[392602334,1761730006514,1134.77,4.624e-05,120]
[392602342,1761730035098,-1868.365488,0.00018504,5]
[392602350,1761730089141,500.0,0.00030137,120]
[392602358,1761730113363,334.05072291,0.00015,2]
[392602364,1761730147101,-5000.0,0.00018318,2]
[392602365,1761730147121,-150.0,0.00018411,2]
[392602366,1761730147484,-1200.0,0.00018503,2]
[392602367,1761730147520,-300.0,0.00018503,2]
[392602368,1761730147539,-2358.59199878,0.00018504,2]
[392602369,1761730152110,-13208.85390742,0.00018504,2]
[392602370,1761730152131,-331.25147199,0.00018786,2]
[392602371,1761730152154,-7082.51590894,0.00018873,2]
[392602372,1761730156121,-4918.99750833,0.00018873,2]
[392602373,1761730156145,-300.0,0.00018873,2]
[392602374,1761730156167,-300.0,0.00018873,2]
[392602375,1761730156189,-300.0,0.00018873,2]
[392602376,1761730156211,-300.0,0.00018873,2]
[392602377,1761730156232,-300.0,0.00018873,2]
[392602378,1761730156253,-300.0,0.00018873,2]
[392602379,1761730156273,-300.0,0.00018873,2]